Cogmind - Beta 14 @@@ ROGUE MODE // 2024.08.23 @ 23:52:43 Player: THN-L0C Result: Destroyed by D-53 Grenadier with Mini Grenade Launcher Performance ------------- Evolutions (0) 0 Regions Visited (2) 400 Robots Destroyed (18) 90 Value Destroyed (375) 375 Prototype IDs (2) 40 Alien Tech Used (0) 0 Bonus (14) 14 TOTAL SCORE: 919 Bonus ------- Follower Combat Kills 14 Cogmind --------- Core Integrity 0/250 Matter 300/300 Energy 79/100 System Corruption 0% Temperature Cool (7) Movement Core (250) Ox4 Location -10/Mines Parts ------- > --- POWER (1) -------- (None) > --- PROPULSION (2) --- (None) > --- UTILITY (2) ------ Medium Storage Unit > --- WEAPON (2) ------- Particle Gun > --- INVENTORY (10) --- Ion Engine Improved Heat Sink Large Storage Unit Signal Interpreter Seismic Detector Light Armor Plating Beam Cannon Beam Cannon Assault Rifle Peak State ------------ > --- POWER ------------ Light Nuclear Core > --- PROPULSION ------- Aluminum Leg Aluminum Leg > --- UTILITY ---------- Medium Storage Unit Light Armor Plating > --- WEAPON ----------- Particle Gun Particle Gun > --- INVENTORY -------- Ion Engine Aluminum Leg Heat Sink Large Storage Unit Signal Interpreter Seismic Detector Light Armor Plating Beam Cannon Beam Cannon Assault Rifle [Rating: 12] Favorites ----------- Power Ion Engine Engine Ion Engine Power Core Light Nuclear Core Propulsion Aluminum Leg Leg Aluminum Leg Wheel Wheel Utility Medium Storage Unit Device Seismic Detector Storage Medium Storage Unit Protection Light Armor Plating Weapon Beam Cannon Energy Gun Particle Gun Energy Cannon Beam Cannon Build | -11 -10 -10 ------- Run | Yrd Mat Min Slots Evolved . | . . . Power . | . . . Propulsion . | . . . Utility . | . . . Weapon . | . . . Parts Attached 30 | 7 16 7 Power 5 | 1 3 1 Engine 4 | 1 3 . Core 1 | . . 1 Reactor . | . . . Propulsion 8 | 2 3 3 Treads . | . . . Leg 6 | . 3 3 Wheel 2 | 2 . . Hover . | . . . Flight . | . . . Utility 7 | 2 5 . Device 2 | 1 1 . Storage 2 | 1 1 . Processor . | . . . Hackware . | . . . Protection 3 | . 3 . Artifact . | . . . Weapon 10 | 2 5 3 Energy Gun 7 | 2 2 3 Energy Cannon 3 | . 3 . Ballistic Gun . | . . . Ballistic Cannon . | . . . Launcher . | . . . Special Weapon . | . . . Impact Weapon . | . . . Slashing Weapon . | . . . Piercing Weapon . | . . . Special Melee Weapon . | . . . Unidentified Prototypes . | . . . Parts Lost 11 | . 5 6 Power 2 | . 1 1 Propulsion 6 | . 3 3 Utility 2 | . 1 1 Weapon 1 | . . 1 Highest Loss Streak 6 | . 2 6 To Critical Strikes . | . . . Average Slot Usage (%) 97 | . 97 98 Engine 13 | . 14 7 Leg 23 | . 22 27 Wheel 2 | . 2 . Device 3 | . 3 . Storage 14 | . 14 14 Protection 10 | . 10 14 Energy Gun 17 | . 16 24 Energy Cannon 10 | . 11 3 Peak Build Rating 12 | 7 9 12 Average Rating 8 | 4 7 10 On Entrance 5 | . 7 9 Naked Turns . | . . . Heaviest Build 24 | 12 24 24 Greatest Support 20 | 20 20 20 Greatest Overweight (x) 6 | 2 6 1 Average Overweight (x) . | . . . Largest Inventory Capacity 10 | 8 10 10 Average Capacity 9 | 7 9 10 Most Carried 10 | . 10 10 Average Carried 8 | . 8 9 Final Capacity 10 | 8 10 10 Final Carried 10 | . 10 9 Class Distribution -------------------- 80% | Scavenger-Mutant 19% | Mutant Dominant Class ---------------- Scavenger-Mutant | -10/Materials Scavenger-Mutant | -10/Mines Resources | -11 -10 -10 ----------- Run | Yrd Mat Min Matter Collected 470 | 65 345 60 Remotely . | . . . Salvage Created 467 | 15 441 11 Parts 35 | 3 29 3 Haulers Intercepted 1 | . 1 . Recyclers Shooed 1 | . 1 . Parts Field Recycled . | . . . Retrieved Matter . | . . . Parts Self-Destructed . | . . . Prevented . | . . . Kills | -11 -10 -10 ------- Run | Yrd Mat Min Combat Hostiles Destroyed 14 | . 13 1 Guns 13 | . 12 1 Cannons 1 | . 1 . Classes Destroyed 5 | 1 4 . Tunneler 1 | 1 . . Hauler 1 | . 1 . Watcher 2 | . 2 . Swarmer 7 | . 6 1 Grunt 7 | . 7 . Best Kill Streak 3 | 1 3 1 Combat Bots Only 3 | . 3 1 Max Kills in Single Turn 1 | 1 1 1 Gunslinging . | . . . Exploded . | . . . Melee . | . . . Uniques/NPCs Destroyed . | . . . Combat | -11 -10 -10 -------- Run | Yrd Mat Min Hostile Shots Fired 139 | . 86 53 Missed 40 | . 21 19 Damage Taken 1442 | . 794 648 Core 264 | . 133 131 Absorbed by Shields . | . . . Core Remaining (%) 100 | 100 . . Volleys Fired 90 | 3 81 6 Largest 2 | 2 2 2 Hottest 130 | 90 110 130 Shots Fired 113 | 6 99 8 Gun 98 | 6 84 8 Cannon 15 | . 15 . Launcher . | . . . Special . | . . . Kinetic . | . . . Thermal 113 | 6 99 8 Explosive . | . . . Electromagnetic . | . . . Robot Hit Streak 9 | 4 9 1 Robot Miss Streak 5 | 1 5 3 Penetration Max . | . . . Secondary Targets 1 | . 1 . Max Gunslinging Chain 1 | . 1 . Shots Hit Robots 68 | 4 62 2 Core Hits 29 | 1 26 2 Critical Kills . | . . . Critical Parts Destroyed . | . . . Critical Strikes 4 | . 3 1 Burn 4 | . 3 1 Melee Attacks . | . . . Impact . | . . . Slashing . | . . . Piercing . | . . . Sneak Attacks . | . . . Combat Hostiles . | . . . Follow-up Attacks . | . . . Damage Inflicted 906 | 48 824 34 Guns 760 | 48 684 28 Cannons 140 | . 140 . Explosions . | . . . Melee . | . . . Ramming 6 | . . 6 Kinetic . | . . . Thermal 900 | 48 824 28 Explosive . | . . . Electromagnetic . | . . . Impact . | . . . Slashing . | . . . Piercing . | . . . Highest Corruption . | . . . Average Corruption . | . . . Corruption Purged . | . . . Corruption Blocked . | . . . Overload Shots . | . . . Overflow Damage 5 | . 5 . Projectiles 5 | . 5 . Explosions . | . . . Melee . | . . . Knockbacks . | . . . Impact . | . . . Kinetic . | . . . Secondary . | . . . Self-Inflicted Damage . | . . . Shots . | . . . Rammed . | . . . Targets Rammed 1 | . . 1 Kicked 1 | . . 1 Crushed . | . . . Highest Temperature 297 | 60 297 126 Average Temperature 118 | 30 130 39 Received Heat Transfer 381 | . 381 . Effects 3 | . 3 . Energy Bleed 1 | . 1 . Interference 2 | . 2 . Siege Activations . | . . . Robots Corrupted . | . . . Combat Hostiles . | . . . Parts Fried . | . . . Impact Corruptions . | . . . Robots Melted . | . . . Combat Hostiles . | . . . Parts Melted 6 | 2 4 . Heat Transferred 2537 | 124 2265 148 Parts Sabotaged . | . . . Parts Stolen . | . . . Parts Stripped . | . . . Power Chain Reactions . | . . . Alert | -11 -10 -10 ------- Run | Yrd Mat Min Peak Influence 190 | 5 190 106 Initial 3 | . 3 3 Average 58 | 1 60 59 Maximum Alert Level . | . . . Low Security (%) 100 | 100 100 100 Level 1 . | . . . Level 2 . | . . . Level 3 . | . . . Level 4 . | . . . Level 5 . | . . . High Security . | . . . Max Security . | . . . Squads Dispatched 2 | . 2 . Investigation . | . . . Extermination . | . . . Reinforcement 2 | . 2 . Assault . | . . . Garrison . | . . . Intercept . | . . . Searches Triggered . | . . . Construction Impeded . | . . . Haulers Reinforced . | . . . Active Scanning Responses . | . . . Cargo Convoy Interrupts . | . . . Stealth | -11 -10 -10 --------- Run | Yrd Mat Min Distress Signals 1 | . 1 . Communications Jammed . | . . . Distress Signals . | . . . Times Spotted 50 | . 27 23 Peak Tracking Total 18 | . 4 18 Tactical Retreats 4 | . 1 3 Traps | -11 -10 -10 ------- Run | Yrd Mat Min Traps Triggered . | . . . Indirectly . | . . . Trap Hack Attempts . | . . . Triggered . | . . . Disarmed . | . . . Reprogrammed . | . . . Reused . | . . . Traps Extracted . | . . . Installed . | . . . Triggered . | . . . Machines | -11 -10 -10 ---------- Run | Yrd Mat Min Machines Disabled . | . . . Max in Single Turn . | . . . Machines Repaired . | . . . Machines Dismantled . | . . . Machines Sabotaged . | . . . Overloaded Fab Kills . | . . . Hacking | -11 -10 -10 --------- Run | Yrd Mat Min Machines Accessed 7 | . 7 . Terminals 6 | . 6 . Fabricators . | . . . Repair Stations . | . . . Recycling Units 1 | . 1 . Scanalyzers . | . . . Garrison Access . | . . . Total Hacks 25 | . 25 . Successful 17 | . 17 . Failed 8 | . 8 . Catastrophic 1 | . 1 . Database Lockouts . | . . . Manual 10 | . 10 . Terminals 24 | . 24 . Fabricators . | . . . Repair Stations . | . . . Recycling Units 1 | . 1 . Scanalyzers . | . . . Garrison Access . | . . . Terminal Hacks 12 | . 12 . Robot Schematic 1 | . 1 . Robot Analysis 1 | . 1 . Prototype ID Bank 1 | . 1 . Emergency Access Points 2 | . 2 . Alert Level 1 | . 1 . Disarm Traps 1 | . 1 . Maintenance Status 1 | . 1 . Patrol Status 1 | . 1 . Zone Layout 3 | . 3 . Fabricator Hacks . | . . . Repair Station Hacks . | . . . Recycling Unit Hacks 1 | . 1 . Report Inventory 1 | . 1 . Scanalyzer . | . . . Garrison Access Hacks . | . . . Unauthorized Hacks 4 | . 4 . Terminals 4 | . 4 . Track 1 | . 1 . Assimilate 1 | . 1 . Botnet 1 | . 1 . Operators 1 | . 1 . Fabricators . | . . . Repair Stations . | . . . Recycling Units . | . . . Scanalyzers . | . . . Garrison Access . | . . . Data Cores Recovered . | . . . Used . | . . . Hacking Detections 5 | . 5 . Full Trace Events . | . . . Feedback Events . | . . . Feedback Blocked . | . . . Robot Schematics Acquired 1 | . 1 . Robots Built . | . . . Authchips . | . . . Time . | . . . Total Robot Build Rating . | . . . Part Schematics Acquired . | . . . Parts Built . | . . . Authchips . | . . . Time . | . . . Total Part Build Rating . | . . . Parts Repaired . | . . . Time . | . . . Parts Recycled . | . . . Recycled Matter . | . . . Retrieved Matter . | . . . Retrieved Components . | . . . Parts Scanalyzed . | . . . Part Schematics Acquired . | . . . Parts Damaged . | . . . Bothacking | -11 -10 -10 ------------ Run | Yrd Mat Min Used RIF Installer . | . . . Robots Hacked . | . . . Non-combat . | . . . Combat . | . . . Robot Hacks Applied . | . . . Relay Couplers Released . | . . . Fabnet Peak Effective % . | . . . Robots Rewired . | . . . Allies Hacked . | . . . Hacks Repelled . | . . . Allies | -11 -10 -10 -------- Run | Yrd Mat Min Total Allies 4 | . 1 3 Largest Group 4 | . 1 4 Highest-Rated Group 50 | . 10 50 Highest-Rated Ally 16 | . 10 16 Total Orders . | . . . Ally Attacks 21 | . . 21 Total Damage 160 | . . 160 Kills 3 | . . 3 Allies Corrupted . | . . . Allies Melted . | . . . Intel | -11 -10 -10 ------- Run | Yrd Mat Min Robot Analysis Total 1 | . 1 . Derelict Logs Recovered 1 | . . 1 Drone Launches . | . . . Drone Recoveries . | . . . Exploration | -11 -10 -10 ------------- Run | Yrd Mat Min Turns Passed 2077 | 59 1750 268 Spaces Moved 1040 | 45 864 131 Core 44 | 18 26 . Treads . | . . . Legs 837 | . 706 131 Wheels 159 | 27 132 . Hover . | . . . Flight . | . . . Fastest Speed 50 | 50 80 120 Average Speed 160 | 85 160 181 Slowest Speed 350 | 150 350 190 Overloaded Moves . | . . . Propulsion Burnouts . | . . . Robots Hopped . | . . . Cave-ins Triggered . | . . . Exploration Rate (%) 42 | 3 91 33 Regions Visited 2 Branch Regions 1 Pre-discovered Areas 1 | . . 1 Known Exits Taken . | . . . Unknown Exits Taken 2 | 1 1 . Scrap Searched . | . . . Spaces Dug . | . . . Terrain Destroyed . | . . . Melee . | . . . Projectile . | . . . AOE . | . . . Terrain Rammed . | . . . Walls Destroyed . | . . . Machines Disabled . | . . . Actions | -11 -10 -10 --------- Run | Yrd Mat Min Total 1332 | 55 1121 156 Wait 150 | 1 145 4 Move 1038 | 44 863 131 Hop . | . . . Pick Up 13 | . 12 1 Fast Attach 9 | 7 2 . Attach 4 | . 3 1 Detach . | . . . Swap 17 | . 11 6 Drop 10 | . 4 6 Fire 90 | 3 81 6 Melee . | . . . Ram . | . . . Kick 1 | . . 1 Crush . | . . . Escape Stasis . | . . . Rewire . | . . . Trap . | . . . Miscellaneous . | . . . Route ------- -11/Scrapyard -10/Materials (discovered 4 exits: [*Mat x3] / [*Min]) -10/Mines (discovered 1 exit: [*Mat]) History --------- Turn | Location | Event 17 | -11/Scrapyard | Discovered new exit (range 15) 60 | -11/Scrapyard | Entered Materials 131 | -10/Materials | Discovered new exit (range 3) 303 | -10/Materials | Build established: Mutant 462 | -10/Materials | Discovered new exit (range 11) 685 | -10/Materials | Build established: Scavenger-Mutant 778 | -10/Materials | Core integrity fell below 50% 834 | -10/Materials | Discovered new exit (range 12) 864 | -10/Materials | Discovered new exit (range 6) 1810 | -10/Materials | Entered Mines 1810 | -10/Mines | Accompanied by 1 ally 1814 | -10/Mines | Assisted by bots powering up and referring to "LRC-V3" 1816 | -10/Mines | Learned location of Storage (-7) 1868 | -10/Mines | Discovered new exit (range 9) 2025 | -10/Mines | Assembled infested the area 2056 | -10/Mines | Core integrity fell below 20% 2078 | -10/Mines | Destroyed by D-53 Grenadier with Mini Grenade Launcher Last Messages --------------- 02054_ Core Extractor disabled. 02055_ R-06 Scavenger system terminally corrupted. 02056_ K-01 Serf collects debris. 02058_ as-77985 destroyed. 02058_ as-43453 destroyed. 02058_ as-20502 destroyed. 02058_ as-79357 destroyed. 02058_ as-21038 destroyed. 02058_ as-88431 destroyed. 02060_ K-01 Serf collects debris. 02061_ as-41457 destroyed. 02064_ K-01 Serf collects debris. 02065_ as-27293 suffers critical hit (Burn). 02066_ as-27293 destroyed. 02068_ Aluminum Leg destroyed. 02072_ Technician 1a destroyed. 02072_ as-27587 destroyed. 02074_ Lgt. Armor Plating destroyed. 02076_ Aluminum Leg destroyed. 02078_ Particle Gun destroyed. Map ----- +----------------------------------------------------+ | ?????# #???????????# #??????????????? | | ?????# #????????????# #???????????????? | | ?????# #????????????# #????????????????? | | ?????# #???????????## #????????????????? | | ?????# #??????????## ######???????????? | | ?????# ####??????##== #???????????? | | ?????# #?????##%%* ####" ### #???????? | | ?????# ## ####### %* ##??#%" #???????? | | ?????# ## = ! ######" #####???????? | | ?????# ######### %= ### #????????? | | ????? ??????## ###?# #????????? | | ???? """ #??????####???# #????????? | | ??? """ #?????????????#### #????????? | | ?? """ #????????????????# #????????? | | ?? < #????????????????# #????????? | | ?# #????????????????# #????????? | | ?# #????????????????#### =###?####??? | | ?#######??????????#####???????#*%= ### #### | | ?????????????????## ####????#=[ ## %$ | | ????????????????## #????#! ## % | | ???????????????## #???? %### | | ?????????????### ### #?? | | ?????????????# %"" #?? | | ????????????## d """ # | | ????????????# d % "" | | ????????????## @ | | ?????????????# | | ?????????????# ### # | | ?????????????# ##?# # | | ????????????# # #??# ## | | ????????????# ####?###### ? ####? | | ????????????# ??????????# ##### ##???? | | ????????????# ???????????# #???#= ##????? | | ???????????? ????????????# #???#%= #?????? | | ??????????? ?????????????# #??? * #?????? | | ??????????#?????????????? ??? ##?????? | | ????????????????????????? ??? #??????? | | ????????????????????????? ##??? #??????? | | ????????????????????????? #?????? ????????? | | ???????????????????????????????????????????? | | ???????????????????????????????????????????? | | ???????????????????????????????????????????? | | ???????????????????????????????????????????? | | ???????????????????????????????????????????? | | ???????????????????????????????????????????? | | ???????????????????????????????????????????? | | ???????????????????????????????????????????? | | ???????????????????????????????????????????? | | ???????????????????????????????????????????? | | ???????????????????????????????????????????? | +----------------------------------------------------+ Best States ------------- Heat Dissipation 25 Energy Generation 14 Energy Capacity 250 Matter Stores 300 Matter Capacity 300 Sight Range 16 Terrain Scan Density 10 Armor Coverage 150 Evasion (%) 55 Item Schematics ----------------- None Robot Schematics ------------------ M-13 Machinist | -10/Materials | Hacked Fabricated ------------ Nothing Alien Tech Used ----------------- None Achievements -------------- None Challenges ------------ None Game ------ Seed ShrapnelNetworkPrototype Manual? 0 Play Time 00:21:27 Cumulative 115.5 hours Start 2024.08.23 @ 23:28:34 End 2024.08.23 @ 23:52:43 Sessions 1 Manual Loads 0 Difficulty Rogue Special Mode None Game No. 99 Rogue 99 Adventurer 0 Explorer 0 Win Type - Total 0 Types 0/0/0/0/0/0/0/0/0 Lore% 51 Gallery% 59 Achievement% 48 Wizard Run 0 Options --------- Layout 2 ASCII 0 Keyboard 1 Movement Vi Keybinds 0 Fullscreen 1 Font 32/SmallcapsGlow Map View 77x44 Zoom Use 0% Tactical HUD 1 Map Filters NONE Filters NONE Steam 1 RUN: f8b035dc-0c1a-4f1a-bda1-305a281cc2de